Workbook

Sheet 博士班
A1: 序号 | B1: 学号 | C1: 姓名 | D1: 方向 | E1: 德育 | K1: 智育 | Q1: 文体 | W1: 总分 | X1: 排名
E2: 基本分 | F2: 奖励分 | G2: 惩罚分 | H2: 个人德育总分 | I2: 个人德育总分/基准 | J2: 德育成绩 | K2: 基本成绩分 | L2: 奖励分 | M2: 惩罚分 | N2: 个人智育总分 | O2: 个人智育总分/基准 | P2: 智育成绩 | Q2: 基本分 | R2: 奖励分 | S2: 惩罚分 | T2: 个人文体总分 | U2: 个人文体总分/基准 | V2: 文体成绩
A3: 1 | B3: 2021315213 | C3: 胡文娅 | D3: 博士班 | E3: 97.07 | F3: 4.60 | G3: 0.00 | H3: =E3+F3 -> 101.67 | I3: =H3/MAX($H$3:$H$60) -> 0.7674 | J3: =100*H3/MAX($H$3:$H$60) -> 76.74 | K3: 87.73 | L3: 24.55 | M3: 0.00 | N3: =K3+L3 -> 112.28 | O3: =N3/MAX($N$3:$N$60) -> 1.0000 | P3: =100*N3/MAX($N$3:$N$60) -> 100.00 | Q3: 100.00 | R3: 0.00 | S3: 0.00 | T3: =Q3+R3 -> 100.00 | U3: =T3/MAX($T$3:$T$60) -> 0.8977 | V3: =100*T3/MAX($T$3:$T$60) -> 89.77 | W3: =J3*0.2+P3*0.7+V3*0.1 -> 94.32 | X3: 1
A4: 2 | B4: 2021310215 | C4: 王存宁 | D4: 博士班 | E4: 96.85 | F4: 4.00 | G4: 0.00 | H4: 100.85 | I4: 0.7612 | J4: 76.12 | K4: 91.88 | L4: 18.00 | M4: 0.00 | N4: 109.88 | O4: 0.9787 | P4: 97.87 | Q4: 100.00 | R4: 0.00 | S4: 0.00 | T4: 100.00 | U4: 0.8977 | V4: 89.77 | W4: 92.71 | X4: 2
A5: 3 | B5: 2021310205 | C5: 曹轶华 | D5: 博士班 | E5: 96.89 | F5: 6.00 | G5: 0.00 | H5: 102.89 | I5: 0.7766 | J5: 77.66 | K5: 89.90 | L5: 18.19 | M5: 0.00 | N5: 108.09 | O5: 0.9628 | P5: 96.28 | Q5: 100.00 | R5: 0.00 | S5: 0.00 | T5: 100.00 | U5: 0.8977 | V5: 89.77 | W5: 91.90 | X5: 3
A6: 4 | B6: 2021310231 | C6: 李玉果 | D6: 博士班 | E6: 96.84 | F6: 4.00 | G6: 0.00 | H6: 100.84 | I6: 0.7612 | J6: 76.12 | K6: 88.10 | L6: 17.87 | M6: 0.00 | N6: 105.97 | O6: 0.9439 | P6: 94.39 | Q6: 100.00 | R6: 0.00 | S6: 0.00 | T6: 100.00 | U6: 0.8977 | V6: 89.77 | W6: 90.27 | X6: 4
A7: 5 | B7: 2021310234 | C7: 高靖博 | D7: 博士班 | E7: 96.84 | F7: 3.00 | G7: 0.00 | H7: 99.84 | I7: 0.7536 | J7: 75.36 | K7: 90.40 | L7: 15.60 | M7: 0.00 | N7: 106.00 | O7: 0.9441 | P7: 94.41 | Q7: 100.00 | R7: 0.00 | S7: 0.00 | T7: 100.00 | U7: 0.8977 | V7: 89.77 | W7: 90.14 | X7: 5
A8: 6 | B8: 2021310232 | C8: 王源丰 | D8: 博士班 | E8: 97.02 | F8: 3.00 | G8: 0.00 | H8: 100.02 | I8: 0.7550 | J8: 75.50 | K8: 84.77 | L8: 20.00 | M8: 0.00 | N8: 104.77 | O8: 0.9331 | P8: 93.31 | Q8: 100.00 | R8: 0.00 | S8: 0.00 | T8: 100.00 | U8: 0.8977 | V8: 89.77 | W8: 89.39 | X8: 6
A9: 7 | B9: 2021310207 | C9: 王奥诚 | D9: 博士班 | E9: 96.74 | F9: 4.60 | G9: 0.00 | H9: 101.34 | I9: 0.7650 | J9: 76.50 | K9: 91.70 | L9: 12.61 | M9: 0.00 | N9: 104.31 | O9: 0.9291 | P9: 92.91 | Q9: 100.00 | R9: 0.00 | S9: 0.00 | T9: 100.00 | U9: 0.8977 | V9: 89.77 | W9: 89.31 | X9: 7
A10: 8 | B10: 2021310226 | C10: 张奇 | D10: 博士班 | E10: 96.82 | F10: 0.00 | G10: 0.00 | H10: 96.82 | I10: 0.7308 | J10: 73.08 | K10: 84.20 | L10: 20.00 | M10: 0.00 | N10: 104.20 | O10: 0.9281 | P10: 92.81 | Q10: 100.00 | R10: 0.00 | S10: 0.00 | T10: 100.00 | U10: 0.8977 | V10: 89.77 | W10: 88.56 | X10: 8
A11: 9 | B11: 2021310243 | C11: 孙衍鹍 | D11: 博士班 | E11: 96.68 | F11: 35.80 | G11: 0.00 | H11: 132.48 | I11: 1.0000 | J11: 100.00 | K11: 88.70 | L11: 5.92 | M11: 0.00 | N11: 94.62 | O11: 0.8427 | P11: 84.27 | Q11: 100.00 | R11: 0.00 | S11: 0.00 | T11: 100.00 | U11: 0.8977 | V11: 89.77 | W11: 87.97 | X11: 9
A12: 10 | B12: 2021310216 | C12: 蔡敏 | D12: 博士班 | E12: 97.09 | F12: 0.00 | G12: 0.00 | H12: 97.09 | I12: 0.7329 | J12: 73.29 | K12: 86.64 | L12: 15.40 | M12: 0.00 | N12: 102.04 | O12: 0.9088 | P12: 90.88 | Q12: 100.00 | R12: 0.00 | S12: 0.00 | T12: 100.00 | U12: 0.8977 | V12: 89.77 | W12: 87.25 | X12: 10
A13: 11 | B13: 2021310250 | C13: 万荫基 | D13: 博士班 | E13: 97.85 | F13: 0.00 | G13: 0.00 | H13: 97.85 | I13: 0.7386 | J13: 73.86 | K13: 86.20 | L13: 15.00 | M13: 0.00 | N13: 101.20 | O13: 0.9014 | P13: 90.14 | Q13: 100.00 | R13: 0.00 | S13: 0.00 | T13: 100.00 | U13: 0.8977 | V13: 89.77 | W13: 86.84 | X13: 11
A14: 12 | B14: 2021310240 | C14: 冯博汉 | D14: 博士班 | E14: 96.84 | F14: 0.00 | G14: 0.00 | H14: 96.84 | I14: 0.7310 | J14: 73.10 | K14: 76.00 | L14: 25.00 | M14: 0.00 | N14: 101.00 | O14: 0.8996 | P14: 89.96 | Q14: 100.00 | R14: 0.00 | S14: 0.00 | T14: 100.00 | U14: 0.8977 | V14: 89.77 | W14: 86.57 | X14: 12
A15: 13 | B15: 2021310239 | C15: 刘萌 | D15: 博士班 | E15: 96.90 | F15: 3.00 | G15: 0.00 | H15: 99.90 | I15: 0.7541 | J15: 75.41 | K15: 90.80 | L15: 7.80 | M15: 0.00 | N15: 98.60 | O15: 0.8782 | P15: 87.82 | Q15: 100.00 | R15: 0.00 | S15: 0.00 | T15: 100.00 | U15: 0.8977 | V15: 89.77 | W15: 85.53 | X15: 13
A16: 14 | B16: 2021310202 | C16: 陈弘男 | D16: 博士班 | E16: 96.77 | F16: 3.00 | G16: 0.00 | H16: 99.77 | I16: 0.7531 | J16: 75.31 | K16: 91.40 | L16: 5.28 | M16: 0.00 | N16: 96.68 | O16: 0.8611 | P16: 86.11 | Q16: 100.00 | R16: 0.00 | S16: 0.00 | T16: 100.00 | U16: 0.8977 | V16: 89.77 | W16: 84.31 | X16: 14
A17: 15 | B17: 2021310221 | C17: 王丽敏 | D17: 博士班 | E17: 97.05 | F17: 0.00 | G17: 0.00 | H17: 97.05 | I17: 0.7326 | J17: 73.26 | K17: 93.10 | L17: 4.17 | M17: 0.00 | N17: 97.27 | O17: 0.8663 | P17: 86.63 | Q17: 100.00 | R17: 0.00 | S17: 0.00 | T17: 100.00 | U17: 0.8977 | V17: 89.77 | W17: 84.27 | X17: 15
A18: 16 | B18: 2021310242 | C18: 李奕菲 | D18: 博士班 | E18: 96.83 | F18: 0.00 | G18: 0.00 | H18: 96.83 | I18: 0.7309 | J18: 73.09 | K18: 84.40 | L18: 12.00 | M18: 0.00 | N18: 96.40 | O18: 0.8586 | P18: 85.86 | Q18: 100.00 | R18: 0.00 | S18: 0.00 | T18: 100.00 | U18: 0.8977 | V18: 89.77 | W18: 83.70 | X18: 16
A19: 17 | B19: 2021310245 | C19: 孙思远 | D19: 博士班 | E19: 96.85 | F19: 6.45 | G19: 0.00 | H19: 103.30 | I19: 0.7798 | J19: 77.98 | K19: 88.00 | L19: 6.45 | M19: 0.00 | N19: 94.45 | O19: 0.8413 | P19: 84.13 | Q19: 100.00 | R19: 0.00 | S19: 0.00 | T19: 100.00 | U19: 0.8977 | V19: 89.77 | W19: 83.46 | X19: 17
A20: 18 | B20: 2021310246 | C20: 丁中振 | D20: 博士班 | E20: 96.81 | F20: 3.00 | G20: 0.00 | H20: 99.81 | I20: 0.7534 | J20: 75.34 | K20: 82.70 | L20: 12.50 | M20: 0.00 | N20: 95.20 | O20: 0.8479 | P20: 84.79 | Q20: 100.00 | R20: 0.00 | S20: 0.00 | T20: 100.00 | U20: 0.8977 | V20: 89.77 | W20: 83.40 | X20: 18
A21: 19 | B21: 2021310251 | C21: 姜刘杉 | D21: 博士班 | E21: 96.86 | F21: 0.00 | G21: 0.00 | H21: 96.86 | I21: 0.7311 | J21: 73.11 | K21: 86.90 | L21: 8.86 | M21: 0.00 | N21: 95.76 | O21: 0.8529 | P21: 85.29 | Q21: 100.00 | R21: 0.00 | S21: 0.00 | T21: 100.00 | U21: 0.8977 | V21: 89.77 | W21: 83.31 | X21: 19
A22: 20 | B22: 2021310214 | C22: 岳黎平 | D22: 博士班 | E22: 96.79 | F22: 3.00 | G22: 0.00 | H22: 99.79 | I22: 0.7532 | J22: 75.32 | K22: 85.90 | L22: 8.75 | M22: 0.00 | N22: 94.65 | O22: 0.8430 | P22: 84.30 | Q22: 100.00 | R22: 0.00 | S22: 0.00 | T22: 100.00 | U22: 0.8977 | V22: 89.77 | W22: 83.05 | X22: 20
A23: 21 | B23: 2021310235 | C23: 张凌玮 | D23: 博士班 | E23: 96.92 | F23: 0.00 | G23: 0.00 | H23: 96.92 | I23: 0.7316 | J23: 73.16 | K23: 91.90 | L23: 3.00 | M23: 0.00 | N23: 94.90 | O23: 0.8452 | P23: 84.52 | Q23: 100.00 | R23: 0.00 | S23: 0.00 | T23: 100.00 | U23: 0.8977 | V23: 89.77 | W23: 82.78 | X23: 21
A24: 22 | B24: 2021310241 | C24: 蒋涛 | D24: 博士班 | E24: 96.81 | F24: 3.00 | G24: 0.00 | H24: 99.81 | I24: 0.7534 | J24: 75.34 | K24: 93.10 | L24: 0.00 | M24: 0.00 | N24: 93.10 | O24: 0.8292 | P24: 82.92 | Q24: 100.00 | R24: 0.00 | S24: 0.00 | T24: 100.00 | U24: 0.8977 | V24: 89.77 | W24: 82.09 | X24: 22
A25: 23 | B25: 2021310206 | C25: 曹潘 | D25: 博士班 | E25: 97.65 | F25: 8.60 | G25: 0.00 | H25: 106.25 | I25: 0.8020 | J25: 80.20 | K25: 90.70 | L25: 0.60 | M25: 0.00 | N25: 91.30 | O25: 0.8132 | P25: 81.32 | Q25: 100.00 | R25: 0.00 | S25: 0.00 | T25: 100.00 | U25: 0.8977 | V25: 89.77 | W25: 81.94 | X25: 23
A26: 24 | B26: 2021310230 | C26: 解凌远 | D26: 博士班 | E26: 96.90 | F26: 5.00 | G26: 0.00 | H26: 101.90 | I26: 0.7692 | J26: 76.92 | K26: 87.73 | L26: 3.76 | M26: 0.00 | N26: 91.49 | O26: 0.8149 | P26: 81.49 | Q26: 100.00 | R26: 0.00 | S26: 0.00 | T26: 100.00 | U26: 0.8977 | V26: 89.77 | W26: 81.40 | X26: 24
A27: 25 | B27: 2021310211 | C27: 刘琦 | D27: 博士班 | E27: 96.91 | F27: 3.00 | G27: 0.00 | H27: 99.91 | I27: 0.7541 | J27: 75.41 | K27: 91.60 | L27: 0.00 | M27: 0.00 | N27: 91.60 | O27: 0.8159 | P27: 81.59 | Q27: 100.00 | R27: 0.00 | S27: 0.00 | T27: 100.00 | U27: 0.8977 | V27: 89.77 | W27: 81.17 | X27: 25
A28: 26 | B28: 2021310223 | C28: 金伟星 | D28: 博士班 | E28: 96.67 | F28: 0.00 | G28: 0.00 | H28: 96.67 | I28: 0.7297 | J28: 72.97 | K28: 91.00 | L28: 0.00 | M28: 0.00 | N28: 91.00 | O28: 0.8105 | P28: 81.05 | Q28: 100.00 | R28: 0.00 | S28: 0.00 | T28: 100.00 | U28: 0.8977 | V28: 89.77 | W28: 80.31 | X28: 26
A29: 27 | B29: 2021310238 | C29: 孔涛 | D29: 博士班 | E29: 96.99 | F29: 0.00 | G29: 0.00 | H29: 96.99 | I29: 0.7321 | J29: 73.21 | K29: 89.30 | L29: 1.46 | M29: 0.00 | N29: 90.76 | O29: 0.8084 | P29: 80.84 | Q29: 100.00 | R29: 0.00 | S29: 0.00 | T29: 100.00 | U29: 0.8977 | V29: 89.77 | W29: 80.21 | X29: 27
A30: 28 | B30: 2021310203 | C30: 李傲 | D30: 博士班 | E30: 96.78 | F30: 0.00 | G30: 0.00 | H30: 96.78 | I30: 0.7305 | J30: 73.05 | K30: 90.80 | L30: 0.00 | M30: 0.00 | N30: 90.80 | O30: 0.8087 | P30: 80.87 | Q30: 100.00 | R30: 0.00 | S30: 0.00 | T30: 100.00 | U30: 0.8977 | V30: 89.77 | W30: 80.20 | X30: 28
A31: 29 | B31: 2021310225 | C31: 邢梦可 | D31: 博士班 | E31: 97.02 | F31: 3.40 | G31: 0.00 | H31: 100.42 | I31: 0.7580 | J31: 75.80 | K31: 89.50 | L31: 0.40 | M31: 0.00 | N31: 89.90 | O31: 0.8007 | P31: 80.07 | Q31: 100.00 | R31: 0.00 | S31: 0.00 | T31: 100.00 | U31: 0.8977 | V31: 89.77 | W31: 80.19 | X31: 29
A32: 30 | B32: 2021310222 | C32: 高金明 | D32: 博士班 | E32: 96.79 | F32: 0.00 | G32: 0.00 | H32: 96.79 | I32: 0.7306 | J32: 73.06 | K32: 90.70 | L32: 0.00 | M32: 0.00 | N32: 90.70 | O32: 0.8078 | P32: 80.78 | Q32: 100.00 | R32: 0.00 | S32: 0.00 | T32: 100.00 | U32: 0.8977 | V32: 89.77 | W32: 80.14 | X32: 30
A33: 31 | B33: 2021310233 | C33: 朱玉洁 | D33: 博士班 | E33: 96.86 | F33: 3.00 | G33: 0.00 | H33: 99.86 | I33: 0.7537 | J33: 75.37 | K33: 89.90 | L33: 0.00 | M33: 0.00 | N33: 89.90 | O33: 0.8007 | P33: 80.07 | Q33: 100.00 | R33: 0.00 | S33: 0.00 | T33: 100.00 | U33: 0.8977 | V33: 89.77 | W33: 80.10 | X33: 31
A34: 32 | B34: 2021310208 | C34: 栾孟坤 | D34: 博士班 | E34: 93.88 | F34: 0.00 | G34: 0.00 | H34: 93.88 | I34: 0.7086 | J34: 70.86 | K34: 91.00 | L34: 0.00 | M34: 0.00 | N34: 91.00 | O34: 0.8105 | P34: 81.05 | Q34: 100.00 | R34: 0.00 | S34: 0.00 | T34: 100.00 | U34: 0.8977 | V34: 89.77 | W34: 79.88 | X34: 32
A35: 33 | B35: 2021310217 | C35: 王有佳 | D35: 博士班 | E35: 96.83 | F35: 0.00 | G35: 0.00 | H35: =E35+F35 -> 96.83 | I35: =H35/MAX($H$3:$H$60) -> 0.7309 | J35: =100*H35/MAX($H$3:$H$60) -> 73.09 | K35: 90.24 | L35: 0.00 | M35: 0.00 | N35: =K35+L35 -> 90.24 | O35: =N35/MAX($N$3:$N$60) -> 0.8037 | P35: =100*N35/MAX($N$3:$N$60) -> 80.37 | Q35: 100.00 | R35: 0.00 | S35: 0.00 | T35: =Q35+R35 -> 100.00 | U35: =T35/MAX($T$3:$T$60) -> 0.8977 | V35: =100*T35/MAX($T$3:$T$60) -> 89.77 | W35: =J35*0.2+P35*0.7+V35*0.1 -> 79.85 | X35: 33
A36: 34 | B36: 2021310201 | C36: 寇悦 | D36: 博士班 | E36: 97.25 | F36: 6.60 | G36: 0.00 | H36: 103.85 | I36: 0.7839 | J36: 78.39 | K36: 87.00 | L36: 1.50 | M36: 0.00 | N36: 88.50 | O36: 0.7882 | P36: 78.82 | Q36: 100.00 | R36: 0.00 | S36: 0.00 | T36: 100.00 | U36: 0.8977 | V36: 89.77 | W36: 79.83 | X36: 34
A37: 35 | B37: 2021310220 | C37: 马瑞洁 | D37: 博士班 | E37: 97.01 | F37: 3.60 | G37: 0.00 | H37: 100.61 | I37: 0.7594 | J37: 75.94 | K37: 89.17 | L37: 0.00 | M37: 0.00 | N37: 89.17 | O37: 0.7942 | P37: 79.42 | Q37: 100.00 | R37: 0.00 | S37: 0.00 | T37: 100.00 | U37: 0.8977 | V37: 89.77 | W37: 79.76 | X37: 35
A38: 36 | B38: 2020310203 | C38: 李娟娟 | D38: 博士班 | E38: 96.85 | F38: 0.00 | G38: 0.00 | H38: 96.85 | I38: 0.7310 | J38: 73.10 | K38: 90.00 | L38: 0.00 | M38: 0.00 | N38: 90.00 | O38: 0.8016 | P38: 80.16 | Q38: 100.00 | R38: 0.00 | S38: 0.00 | T38: 100.00 | U38: 0.8977 | V38: 89.77 | W38: 79.71 | X38: 36
A39: 37 | B39: 2021310252 | C39: 贾亦静 | D39: 博士班 | E39: 96.73 | F39: 0.00 | G39: 0.00 | H39: 96.73 | I39: 0.7301 | J39: 73.01 | K39: 89.90 | L39: 0.00 | M39: 0.00 | N39: 89.90 | O39: 0.8007 | P39: 80.07 | Q39: 100.00 | R39: 0.00 | S39: 0.00 | T39: 100.00 | U39: 0.8977 | V39: 89.77 | W39: 79.63 | X39: 37
A40: 38 | B40: 2021315211 | C40: 陶金泉 | D40: 博士班 | E40: 96.80 | F40: 4.00 | G40: 0.00 | H40: 100.80 | I40: 0.7609 | J40: 76.09 | K40: 87.65 | L40: 0.10 | M40: 0.00 | N40: 87.75 | O40: 0.7816 | P40: 78.16 | Q40: 100.00 | R40: 7.00 | S40: 0.00 | T40: 107.00 | U40: 0.9605 | V40: 96.05 | W40: 79.53 | X40: 38
A41: 39 | B41: 2021310253 | C41: 李蓉蓉 | D41: 博士班 | E41: 96.83 | F41: 3.00 | G41: 0.00 | H41: 99.83 | I41: 0.7536 | J41: 75.36 | K41: 88.57 | L41: 0.00 | M41: 0.00 | N41: 88.57 | O41: 0.7888 | P41: 78.88 | Q41: 100.00 | R41: 0.00 | S41: 0.00 | T41: 100.00 | U41: 0.8977 | V41: 89.77 | W41: 79.27 | X41: 39
A42: 40 | B42: 2021310237 | C42: 付信格 | D42: 博士班 | E42: 96.97 | F42: 1.00 | G42: 0.00 | H42: 97.97 | I42: 0.7395 | J42: 73.95 | K42: 88.80 | L42: 0.02 | M42: 0.00 | N42: 88.82 | O42: 0.7911 | P42: 79.11 | Q42: 100.00 | R42: 0.00 | S42: 0.00 | T42: 100.00 | U42: 0.8977 | V42: 89.77 | W42: 79.14 | X42: 40
A43: 41 | B43: 2021310236 | C43: 许顺年 | D43: 博士班 | E43: 96.84 | F43: 0.00 | G43: 0.00 | H43: 96.84 | I43: 0.7310 | J43: 73.10 | K43: 88.80 | L43: 0.00 | M43: 0.00 | N43: 88.80 | O43: 0.7909 | P43: 79.09 | Q43: 100.00 | R43: 0.00 | S43: 0.00 | T43: 100.00 | U43: 0.8977 | V43: 89.77 | W43: 78.96 | X43: 41
A44: 42 | B44: 2021310219 | C44: 王陇豫 | D44: 博士班 | E44: 96.74 | F44: 3.00 | G44: 0.00 | H44: 99.74 | I44: 0.7528 | J44: 75.28 | K44: 87.70 | L44: 0.00 | M44: 0.00 | N44: 87.70 | O44: 0.7811 | P44: 78.11 | Q44: 100.00 | R44: 0.00 | S44: 0.00 | T44: 100.00 | U44: 0.8977 | V44: 89.77 | W44: 78.71 | X44: 42
A45: 43 | B45: 2021310224 | C45: 关俊杰 | D45: 博士班 | E45: 96.74 | F45: 0.00 | G45: 0.00 | H45: 96.74 | I45: 0.7302 | J45: 73.02 | K45: 88.40 | L45: 0.00 | M45: 0.00 | N45: 88.40 | O45: 0.7874 | P45: 78.74 | Q45: 100.00 | R45: 0.00 | S45: 0.00 | T45: 100.00 | U45: 0.8977 | V45: 89.77 | W45: 78.70 | X45: 43
A46: 44 | B46: 2021310254 | C46: 郑逸 | D46: 博士班 | E46: 96.88 | F46: 3.00 | G46: 0.00 | H46: 99.88 | I46: 0.7539 | J46: 75.39 | K46: 87.20 | L46: 0.10 | M46: 0.00 | N46: 87.30 | O46: 0.7776 | P46: 77.76 | Q46: 100.00 | R46: 0.00 | S46: 0.00 | T46: 100.00 | U46: 0.8977 | V46: 89.77 | W46: 78.48 | X46: 44
A47: 45 | B47: 2021315207 | C47: 肖鹏 | D47: 博士班 | E47: 96.69 | F47: 3.00 | G47: 0.00 | H47: 99.69 | I47: 0.7525 | J47: 75.25 | K47: 87.15 | L47: 0.00 | M47: 0.00 | N47: 87.15 | O47: 0.7762 | P47: 77.62 | Q47: 100.00 | R47: 0.00 | S47: 0.00 | T47: 100.00 | U47: 0.8977 | V47: 89.77 | W47: 78.36 | X47: 45
A48: 46 | B48: 2021310227 | C48: 李博凤 | D48: 博士班 | E48: 97.08 | F48: 0.00 | G48: 0.00 | H48: 97.08 | I48: 0.7328 | J48: 73.28 | K48: 87.70 | L48: 0.00 | M48: 0.00 | N48: 87.70 | O48: 0.7811 | P48: 78.11 | Q48: 100.00 | R48: 0.00 | S48: 0.00 | T48: 100.00 | U48: 0.8977 | V48: 89.77 | W48: 78.31 | X48: 46
A49: 47 | B49: 2021310218 | C49: 回天力 | D49: 博士班 | E49: 96.93 | F49: 0.00 | G49: 0.00 | H49: 96.93 | I49: 0.7317 | J49: 73.17 | K49: 87.70 | L49: 0.00 | M49: 0.00 | N49: 87.70 | O49: 0.7811 | P49: 78.11 | Q49: 100.00 | R49: 0.00 | S49: 0.00 | T49: 100.00 | U49: 0.8977 | V49: 89.77 | W49: 78.29 | X49: 47
A50: 48 | B50: 2021310212 | C50: 刘继坤 | D50: 博士班 | E50: 96.90 | F50: 0.00 | G50: 0.00 | H50: 96.90 | I50: 0.7314 | J50: 73.14 | K50: 83.20 | L50: 2.14 | M50: 0.00 | N50: 85.34 | O50: 0.7601 | P50: 76.01 | Q50: 100.00 | R50: 11.40 | S50: 0.00 | T50: 111.40 | U50: 1.0000 | V50: 100.00 | W50: 77.84 | X50: 48
A51: 49 | B51: 2021310228 | C51: 孙建辰 | D51: 博士班 | E51: 96.97 | F51: 3.00 | G51: 0.00 | H51: 99.97 | I51: 0.7546 | J51: 75.46 | K51: 85.67 | L51: 0.50 | M51: 0.00 | N51: 86.17 | O51: 0.7675 | P51: 76.75 | Q51: 100.00 | R51: 0.00 | S51: 0.00 | T51: 100.00 | U51: 0.8977 | V51: 89.77 | W51: 77.79 | X51: 49
A52: 50 | B52: 2021310204 | C52: 马秋伟 | D52: 博士班 | E52: 96.78 | F52: 0.00 | G52: 0.00 | H52: 96.78 | I52: 0.7305 | J52: 73.05 | K52: 86.60 | L52: 0.00 | M52: 0.00 | N52: 86.60 | O52: 0.7713 | P52: 77.13 | Q52: 100.00 | R52: 0.00 | S52: 0.00 | T52: 100.00 | U52: 0.8977 | V52: 89.77 | W52: 77.58 | X52: 50
A53: 51 | B53: 2021310244 | C53: 杨扬 | D53: 博士班 | E53: 97.22 | F53: 3.00 | G53: 0.00 | H53: 100.22 | I53: 0.7565 | J53: 75.65 | K53: 84.97 | L53: 0.23 | M53: 0.00 | N53: 85.19 | O53: 0.7588 | P53: 75.88 | Q53: 100.00 | R53: 0.00 | S53: 0.00 | T53: 100.00 | U53: 0.8977 | V53: 89.77 | W53: 77.22 | X53: 51
A54: 52 | B54: 2021315212 | C54: 刘启 | D54: 博士班 | E54: 96.91 | F54: 0.00 | G54: 0.00 | H54: 96.91 | I54: 0.7315 | J54: 73.15 | K54: 82.88 | L54: 0.00 | M54: 0.00 | N54: 82.88 | O54: 0.7381 | P54: 73.81 | Q54: 100.00 | R54: 0.00 | S54: 0.00 | T54: 100.00 | U54: 0.8977 | V54: 89.77 | W54: 75.28 | X54: 52
A55: 53 | B55: 2021310229 | C55: 马跃 | D55: 博士班 | E55: 96.89 | F55: 0.00 | G55: 0.00 | H55: 96.89 | I55: 0.7314 | J55: 73.14 | K55: 82.40 | L55: 0.00 | M55: 0.00 | N55: 82.40 | O55: 0.7339 | P55: 73.39 | Q55: 100.00 | R55: 0.00 | S55: 0.00 | T55: 100.00 | U55: 0.8977 | V55: 89.77 | W55: 74.98 | X55: 53
A56: 54 | B56: 2021310213 | C56: 杨晔 | D56: 博士班 | E56: 96.86 | F56: 3.00 | G56: 0.00 | H56: 99.86 | I56: 0.7537 | J56: 75.37 | K56: 80.64 | L56: 0.75 | M56: 0.00 | N56: 81.39 | O56: 0.7249 | P56: 72.49 | Q56: 100.00 | R56: 0.00 | S56: 0.00 | T56: 100.00 | U56: 0.8977 | V56: 89.77 | W56: 74.80 | X56: 54
A57: 55 | B57: 2021310248 | C57: 罗伊雯 | D57: 博士班 | E57: 96.88 | F57: 0.00 | G57: 0.00 | H57: 96.88 | I57: 0.7313 | J57: 73.13 | K57: 80.70 | L57: 0.00 | M57: 0.00 | N57: 80.70 | O57: 0.7188 | P57: 71.88 | Q57: 100.00 | R57: 0.00 | S57: 0.00 | T57: 100.00 | U57: 0.8977 | V57: 89.77 | W57: 73.92 | X57: 55
A58: 56 | B58: 2021310209 | C58: 李俊 | D58: 博士班 | E58: 0.00 | F58: 0.00 | G58: 0.00 | H58: 0.00 | I58: 0.0000 | J58: 0.00 | K58: 0.00 | L58: 0.00 | M58: 0.00 | N58: 0.00 | O58: 0.0000 | P58: 0.00 | Q58: 100.00 | R58: 0.00 | S58: 0.00 | T58: 100.00 | U58: 0.8977 | V58: 89.77 | W58: 8.98 | X58: 56
A59: 57 | B59: 2021310210 | C59: 杨梅 | D59: 博士班 | E59: 0.00 | F59: 0.00 | G59: 0.00 | H59: 0.00 | I59: 0.0000 | J59: 0.00 | K59: 0.00 | L59: 0.00 | M59: 0.00 | N59: 0.00 | O59: 0.0000 | P59: 0.00 | Q59: 100.00 | R59: 0.00 | S59: 0.00 | T59: 100.00 | U59: 0.8977 | V59: 89.77 | W59: 8.98 | X59: 57
A60: 58 | B60: 2021310247 | C60: 陈诚 | D60: 博士班 | E60: 0.00 | F60: 0.00 | G60: 0.00 | H60: 0.00 | I60: 0.0000 | J60: 0.00 | K60: 0.00 | L60: 0.00 | M60: 0.00 | N60: 0.00 | O60: 0.0000 | P60: 0.00 | Q60: 100.00 | R60: 0.00 | S60: 0.00 | T60: 100.00 | U60: 0.8977 | V60: 89.77 | W60: 8.98 | X60: 58
